[Event "Open Nuevo Centro. Jornada 2"]
[Site "Chess.com"]
[Date "2020.06.26"]
[Round "8"]
[White "Beneyto de Ramon, Guillermo"]
[Black "Sverdlik Roldán, Elías"]
[Result "1-0"]
[WhiteElo "1503"]
[BlackElo "761"]
[TimeControl "180+2"]
[EndTime "11:55:15 PDT"]
[Termination "Victoria de GUILLETE por abandono"]

1. c4 {[%clk 0:03:01.9]} 1... e5 {[%clk 0:02:30.6]} 2. Nc3 {[%clk 0:03:01]} 2...
Nc6 {[%clk 0:02:29.1]} 3. g3 {[%clk 0:03:01.9]} 3... Nf6 {[%clk 0:02:28.4]} 4.
Bg2 {[%clk 0:03:02.5]} 4... d6 {[%clk 0:02:22.7]} 5. d3 {[%clk 0:03:03.1]} 5...
Bd7 {[%clk 0:02:22.9]} 6. Bg5 {[%clk 0:03:02.7]} 6... Be7 {[%clk 0:02:23.1]} 7.
Nf3 {[%clk 0:03:02.6]} 7... h6 {[%clk 0:02:04.8]} 8. Bxf6 {[%clk 0:02:58.6]}
8... Bxf6 {[%clk 0:02:05.3]} 9. Nd5 {[%clk 0:02:59.4]} 9... Nd4 {[%clk 0:01:43]}
10. Nxd4 {[%clk 0:02:57.5]} 10... exd4 {[%clk 0:01:42.5]} 11. O-O {[%clk
0:02:56.1]} 11... Be6 {[%clk 0:01:21]} 12. Nxf6+ {[%clk 0:02:55.8]} 12... Qxf6
{[%clk 0:01:21.5]} 13. Bxb7 {[%clk 0:02:56.4]} 13... Rb8 {[%clk 0:01:19.8]} 14.
Qa4+ {[%clk 0:02:49.5]} 14... Bd7 {[%clk 0:01:15.4]} 15. Qxa7 {[%clk 0:02:41.2]}
15... Qd8 {[%clk 0:01:14.4]} 16. Bg2 {[%clk 0:02:33.8]} 16... Rxb2 {[%clk
0:01:09.2]} 17. Qxd4 {[%clk 0:02:32.2]} 17... Rb8 {[%clk 0:00:56.1]} 18. Qxg7
{[%clk 0:02:31.2]} 18... Rf8 {[%clk 0:00:43.5]} 19. Qxh6 {[%clk 0:02:29.4]}
19... Qf6 {[%clk 0:00:44.4]} 20. Qxf6 {[%clk 0:02:29.7]} 1

[Event "Open Nuevo Centro. Jornada 2"]
[Site "Chess.com"]
[Date "2020.06.26"]
[Round "8"]
[White "Hernández Tomás, Efrén"]
[Black "Ainsa Jimenez, Lucas"]
[Result "0-1"]
[WhiteElo "1010"]
[BlackElo "955"]
[TimeControl "180+2"]
[EndTime "11:55:16 PDT"]
[Termination "Victoria de ainsaluck por jaque mate"]

1. e4 {[%clk 0:03:01.9]} 1... e5 {[%clk 0:02:59.8]} 2. Qh5 {[%clk 0:02:58.5]}
2... Nf6 {[%clk 0:02:51.1]} 3. Qxe5+ {[%clk 0:02:57.1]} 3... Be7 {[%clk
0:02:48.9]} 4. Qg5 {[%clk 0:02:55.3]} 4... Nxe4 {[%clk 0:02:46.5]} 5. Qxg7
{[%clk 0:02:55.6]} 5... Bf6 {[%clk 0:02:39.8]} 6. Qg4 {[%clk 0:02:49.9]} 6... d5
{[%clk 0:02:35.6]} 7. f3 {[%clk 0:02:48.2]} 7... Bxg4 {[%clk 0:02:34.6]} 8. fxg4
{[%clk 0:02:40.7]} 8... Nd6 {[%clk 0:02:21.7]} 9. Bd3 {[%clk 0:02:38.2]} 9...
Be7 {[%clk 0:02:17.5]} 10. Nf3 {[%clk 0:02:33]} 10... Nc6 {[%clk 0:02:13.2]} 11.
O-O {[%clk 0:02:30.7]} 11... Qd7 {[%clk 0:02:10.6]} 12. Bb5 {[%clk 0:02:29.6]}
12... O-O-O {[%clk 0:02:08.3]} 13. Bxc6 {[%clk 0:02:30]} 13... Qxc6 {[%clk
0:02:07.6]} 14. Ne5 {[%clk 0:02:28.6]} 14... Qc5+ {[%clk 0:01:59.9]} 15. Rf2
{[%clk 0:02:11.3]} 15... Qxc2 {[%clk 0:01:49.7]} 16. Nxf7 {[%clk 0:02:07.5]}
16... Nxf7 {[%clk 0:01:48.7]} 17. Rxf7 {[%clk 0:02:06.8]} 17... Qxc1+ {[%clk
0:01:45.8]} 18. Kf2 {[%clk 0:02:07.2]} 18... Rhf8 {[%clk 0:01:35.8]} 19. Rxf8
{[%clk 0:02:06.6]} 19... Rxf8+ {[%clk 0:01:35.8]} 20. Kg3 {[%clk 0:02:06.5]}
20... Qxb2 {[%clk 0:01:35]} 21. Nc3 {[%clk 0:02:05.7]} 21... Qxa1 {[%clk
0:01:34.5]} 22. Nxd5 {[%clk 0:02:06.3]} 22... Qe5+ {[%clk 0:01:32.4]} 23. Nf4
{[%clk 0:02:03.4]} 23... Qxf4+ {[%clk 0:01:31.8]} 24. Kh3 {[%clk 0:02:03.9]}
24... Rf6 {[%clk 0:01:28.1]} 25. g3 {[%clk 0:02:03.1]} 25... Qf1+ {[%clk
0:01:28.1]} 26. Kh4 {[%clk 0:02:02.8]} 26... Rh6# {[%clk 0:01:28.7]} 0

[Event "Open Nuevo Centro. Jornada 2"]
[Site "Chess.com"]
[Date "2020.06.26"]
[Round "8"]
[White "Morata Briones, Carlos"]
[Black "Gimenez Saiz, Jose Raul"]
[Result "0-1"]
[WhiteElo "892"]
[BlackElo "1529"]
[TimeControl "180+2"]
[EndTime "11:55:19 PDT"]
[Termination "Victoria de rango013 por jaque mate"]

1. e4 {[%clk 0:03:01.9]} 1... d5 {[%clk 0:03:00.4]} 2. Nc3 {[%clk 0:02:52.5]}
2... d4 {[%clk 0:03:00]} 3. Nd5 {[%clk 0:02:52.2]} 3... e6 {[%clk 0:03:01.4]} 4.
Nf4 {[%clk 0:02:47.1]} 4... Nf6 {[%clk 0:03:02]} 5. d3 {[%clk 0:02:44.5]} 5...
c5 {[%clk 0:03:01.6]} 6. Be2 {[%clk 0:02:41]} 6... Nc6 {[%clk 0:03:02]} 7. Nf3
{[%clk 0:02:32.3]} 7... e5 {[%clk 0:03:00.8]} 8. Nd5 {[%clk 0:02:25.1]} 8...
Nxd5 {[%clk 0:03:01.5]} 9. exd5 {[%clk 0:02:25.3]} 9... Qxd5 {[%clk 0:03:02.8]}
10. c4 {[%clk 0:02:24.5]} 10... dxc3 {[%clk 0:03:02.8]} 11. bxc3 {[%clk
0:02:24.6]} 11... Be7 {[%clk 0:02:56.7]} 12. c4 {[%clk 0:02:25.1]} 12... Qd6
{[%clk 0:02:53]} 13. Bb2 {[%clk 0:02:20.2]} 13... O-O {[%clk 0:02:46.6]} 14. d4
{[%clk 0:02:15]} 14... exd4 {[%clk 0:02:45.4]} 15. Rc1 {[%clk 0:02:06.1]} 15...
Bf5 {[%clk 0:02:36]} 16. Bd3 {[%clk 0:02:04.9]} 16... Bxd3 {[%clk 0:02:34.6]}
17. Qxd3 {[%clk 0:02:03.4]} 17... Ne5 {[%clk 0:02:35]} 18. Qc2 {[%clk
0:01:48.4]} 18... Nxf3+ {[%clk 0:02:34.2]} 19. gxf3 {[%clk 0:01:47.9]} 19...
Rfe8 {[%clk 0:02:31.2]} 20. O-O {[%clk 0:01:46.8]} 20... Qf4 {[%clk 0:02:24.5]}
21. Kh1 {[%clk 0:01:46.9]} 21... Qxf3+ {[%clk 0:02:24.6]} 22. Kg1 {[%clk
0:01:45.6]} 22... Bd6 {[%clk 0:02:23.2]} 23. Qd1 {[%clk 0:01:39.3]} 23... Re2
{[%clk 0:02:19.5]} 24. Ba3 {[%clk 0:01:31.5]} 24... Qf4 {[%clk 0:02:03.8]} 25.
Qxe2 {[%clk 0:01:28.7]} 25... Qxh2# {[%clk 0:02:02.7]} 0

[Event "Open Nuevo Centro. Jornada 2"]
[Site "Chess.com"]
[Date "2020.06.26"]
[Round "8"]
[White "Rabbani Perez, Ayoub "]
[Black "Rausell Taberner, Diego"]
[Result "0-1"]
[WhiteElo "244"]
[BlackElo "575"]
[TimeControl "180+2"]
[EndTime "11:55:22 PDT"]
[Termination "Victoria de DieguinRau por jaque mate"]

1. d4 {[%clk 0:03:01.9]} 1... d5 {[%clk 0:03:00.1]} 2. e3 {[%clk 0:03:01.7]}
2... e6 {[%clk 0:02:54.4]} 3. Nc3 {[%clk 0:03:00.4]} 3... Nc6 {[%clk 0:02:53.1]}
4. Nf3 {[%clk 0:02:52.2]} 4... Nf6 {[%clk 0:02:50.3]} 5. Ng5 {[%clk 0:02:45.6]}
5... Ng4 {[%clk 0:02:36.7]} 6. Nh3 {[%clk 0:02:35.7]} 6... Nf6 {[%clk
0:02:29.4]} 7. Nf4 {[%clk 0:02:33.9]} 7... Bd6 {[%clk 0:02:24.8]} 8. Nd3 {[%clk
0:02:28.1]} 8... Ne4 {[%clk 0:02:21.8]} 9. f4 {[%clk 0:02:19.1]} 9... Nxc3
{[%clk 0:02:16.6]} 10. Qd2 {[%clk 0:02:13.6]} 10... Ne4 {[%clk 0:02:12.7]} 11.
Qd1 {[%clk 0:01:58.9]} 11... Qh4+ {[%clk 0:02:06.1]} 12. Ke2 {[%clk 0:01:57]}
12... Nb4 {[%clk 0:01:57.4]} 13. Nxb4 {[%clk 0:01:52.1]} 13... Qf2+ {[%clk
0:01:55.1]} 14. Kd3 {[%clk 0:01:47.6]} 14... b6 {[%clk 0:01:43.9]} 15. c3 {[%clk
0:01:40.1]} 15... Bxb4 {[%clk 0:01:37.9]} 16. cxb4 {[%clk 0:01:39.8]} 16... Ba6+
{[%clk 0:01:37]} 17. b5 {[%clk 0:01:12]} 17... Bxb5# {[%clk 0:01:35.4]} 0

[Event "Open Nuevo Centro. Jornada 2"]
[Site "Chess.com"]
[Date "2020.06.26"]
[Round "8"]
[White "Colomer Martinez, Isabel"]
[Black "Camison Zornoza, Cesar"]
[Result "0-1"]
[WhiteElo "1247"]
[BlackElo "1715"]
[TimeControl "180+2"]
[EndTime "11:55:36 PDT"]
[Termination "Victoria de cczchess por jaque mate"]

1. d4 {[%clk 0:03:01.9]} 1... Nf6 {[%clk 0:02:59.5]} 2. Nf3 {[%clk 0:03:01.3]}
2... c5 {[%clk 0:03:00.5]} 3. dxc5 {[%clk 0:03:00.2]} 3... Qa5+ {[%clk
0:02:57.9]} 4. Nc3 {[%clk 0:02:56.8]} 4... Qxc5 {[%clk 0:02:58.7]} 5. Be3 {[%clk
0:02:57.3]} 5... Qb4 {[%clk 0:02:51.8]} 6. a3 {[%clk 0:02:56.1]} 6... Qa5 {[%clk
0:02:14.6]} 7. Bd2 {[%clk 0:02:53.9]} 7... Nc6 {[%clk 0:02:04.9]} 8. Nd5 {[%clk
0:02:38.5]} 8... Qd8 {[%clk 0:02:05.6]} 9. Nxf6+ {[%clk 0:02:37.7]} 9... gxf6
{[%clk 0:02:06.6]} 10. e4 {[%clk 0:02:36.9]} 10... Bg7 {[%clk 0:02:07.7]} 11.
Bc4 {[%clk 0:02:35.4]} 11... d6 {[%clk 0:02:06.7]} 12. O-O {[%clk 0:02:36.7]}
12... O-O {[%clk 0:02:07]} 13. c3 {[%clk 0:02:29.8]} 13... Bg4 {[%clk
0:02:06.2]} 14. Bb3 {[%clk 0:02:29.4]} 14... Qb6 {[%clk 0:02:00.2]} 15. Bc2
{[%clk 0:02:14.1]} 15... Ne5 {[%clk 0:01:57.4]} 16. Bb1 {[%clk 0:02:04.3]} 16...
Bxf3 {[%clk 0:01:55.8]} 17. gxf3 {[%clk 0:02:03.7]} 17... Kh8 {[%clk 0:01:53.8]}
18. Qc2 {[%clk 0:02:03]} 18... Rg8 {[%clk 0:01:49.7]} 19. f4 {[%clk 0:02:01.9]}
19... Nf3+ {[%clk 0:01:44.1]} 20. Kg2 {[%clk 0:02:02.2]} 20... Nxd2 {[%clk
0:01:34.1]} 21. Qxd2 {[%clk 0:02:01.3]} 21... Bh6+ {[%clk 0:01:28.9]} 22. Kh1
{[%clk 0:01:51.9]} 22... Qb5 {[%clk 0:01:29.2]} 23. Rg1 {[%clk 0:01:46.2]} 23...
Rxg1+ {[%clk 0:01:27]} 24. Kxg1 {[%clk 0:01:46.3]} 24... Rg8+ {[%clk 0:01:27.7]}
25. Kh1 {[%clk 0:01:45.6]} 25... Qf1# {[%clk 0:01:28.1]} 0

[Event "Open Nuevo Centro. Jornada 2"]
[Site "Chess.com"]
[Date "2020.06.26"]
[Round "8"]
[White "Rabbani Perez, Oumaima "]
[Black "Torres Biosca, Roberto"]
[Result "0-1"]
[WhiteElo "646"]
[BlackElo "701"]
[TimeControl "180+2"]
[EndTime "11:55:45 PDT"]
[Termination "Victoria de rotolo12 por jaque mate"]

1. e3 {[%clk 0:03:01.9]} 1... e6 {[%clk 0:02:59.8]} 2. Bd3 {[%clk 0:03:01.3]}
2... Bd6 {[%clk 0:02:55.8]} 3. Nf3 {[%clk 0:03:02.4]} 3... Qf6 {[%clk
0:02:56.5]} 4. Rg1 {[%clk 0:02:52.3]} 4... Qe7 {[%clk 0:02:56.6]} 5. Rh1 {[%clk
0:02:52.2]} 5... Nf6 {[%clk 0:02:57]} 6. b3 {[%clk 0:02:48]} 6... O-O {[%clk
0:02:56.3]} 7. Ba3 {[%clk 0:02:46.8]} 7... Bxa3 {[%clk 0:02:55.3]} 8. Nxa3
{[%clk 0:02:47.1]} 8... Qxa3 {[%clk 0:02:55.8]} 9. Ne5 {[%clk 0:02:44.4]} 9...
d6 {[%clk 0:02:55.8]} 10. Nc4 {[%clk 0:02:40.2]} 10... Qb4 {[%clk 0:02:53.6]}
11. c3 {[%clk 0:02:33.9]} 11... Qc5 {[%clk 0:02:52.1]} 12. b4 {[%clk 0:02:30.3]}
12... Qc6 {[%clk 0:02:50.2]} 13. Na5 {[%clk 0:02:29]} 13... Qb6 {[%clk
0:02:42.2]} 14. Qa4 {[%clk 0:02:14.2]} 14... Bd7 {[%clk 0:02:21.5]} 15. Qd1
{[%clk 0:02:06]} 15... Nc6 {[%clk 0:02:15.8]} 16. Nxc6 {[%clk 0:01:51.3]} 16...
Qxc6 {[%clk 0:02:14.8]} 17. Qb1 {[%clk 0:01:42.8]} 17... Qxg2 {[%clk 0:02:13.5]}
18. Rf1 {[%clk 0:01:38.4]} 18... Qxh2 {[%clk 0:02:11.7]} 19. c4 {[%clk
0:01:26.4]} 19... Ng4 {[%clk 0:02:10.9]} 20. Be4 {[%clk 0:01:24.8]} 20... Nxf2
{[%clk 0:02:09.6]} 21. Rxf2 {[%clk 0:01:20.8]} 21... Qg1+ {[%clk 0:02:07.6]} 22.
Rf1 {[%clk 0:01:19.9]} 22... Qg3+ {[%clk 0:02:06.4]} 23. Rf2 {[%clk 0:01:15.7]}
23... e5 {[%clk 0:02:05.2]} 24. Qb3 {[%clk 0:01:11.3]} 24... Bh3 {[%clk
0:02:05.3]} 25. Qc3 {[%clk 0:01:09.2]} 25... Qg1+ {[%clk 0:02:04.9]} 26. Rf1
{[%clk 0:01:08.6]} 26... Qxf1# {[%clk 0:02:02.9]} 0

[Event "Open Nuevo Centro. Jornada 2"]
[Site "Chess.com"]
[Date "2020.06.26"]
[Round "8"]
[White "Donate Moreno, Silvia"]
[Black "Hassomal Daswani, Birjkumar"]
[Result "1-0"]
[WhiteElo "1791"]
[BlackElo "1823"]
[TimeControl "180+2"]
[EndTime "11:56:41 PDT"]
[Termination "Victoria de 2camarones por abandono"]

1. e4 {[%clk 0:03:01.9]} 1... c5 {[%clk 0:02:58.5]} 2. Nf3 {[%clk 0:03:02.5]}
2... e6 {[%clk 0:02:57.9]} 3. d4 {[%clk 0:03:03.1]} 3... cxd4 {[%clk 0:02:58.7]}
4. Nxd4 {[%clk 0:03:05]} 4... Bc5 {[%clk 0:02:57.4]} 5. c4 {[%clk 0:03:03.6]}
5... Qb6 {[%clk 0:02:53.6]} 6. Be3 {[%clk 0:02:51.6]} 6... Nc6 {[%clk
0:02:52.5]} 7. Nxc6 {[%clk 0:02:36.5]} 7... Bxe3 {[%clk 0:02:51.2]} 8. fxe3
{[%clk 0:02:35.7]} 8... Qxe3+ {[%clk 0:02:47.5]} 9. Qe2 {[%clk 0:02:36]} 9...
Qxe2+ {[%clk 0:02:47.1]} 10. Bxe2 {[%clk 0:02:36.9]} 10... dxc6 {[%clk
0:02:43.7]} 11. e5 {[%clk 0:02:36.2]} 11... Ne7 {[%clk 0:02:43.4]} 12. Nd2
{[%clk 0:02:36.9]} 12... Ng6 {[%clk 0:02:42.1]} 13. Nf3 {[%clk 0:02:37.7]} 13...
O-O {[%clk 0:02:42]} 14. O-O {[%clk 0:02:38.4]} 14... b6 {[%clk 0:02:42.1]} 15.
c5 {[%clk 0:02:35.7]} 15... bxc5 {[%clk 0:02:33.2]} 16. Rac1 {[%clk 0:02:35.7]}
16... Nf4 {[%clk 0:02:08.5]} 17. Bc4 {[%clk 0:02:31.4]} 17... a5 {[%clk
0:02:05.2]} 18. g3 {[%clk 0:02:29.4]} 18... Nd5 {[%clk 0:02:03.1]} 19. Kf2
{[%clk 0:02:14.5]} 19... Ba6 {[%clk 0:01:59.5]} 20. Bxa6 {[%clk 0:02:14.3]}
20... Rxa6 {[%clk 0:01:59]} 21. Rxc5 {[%clk 0:02:14.8]} 21... Rb6 {[%clk
0:01:57.8]} 22. b3 {[%clk 0:02:12.5]} 22... a4 {[%clk 0:01:58.4]} 23. Nd4 {[%clk
0:02:06]} 23... axb3 {[%clk 0:01:56.8]} 24. axb3 {[%clk 0:02:06.6]} 24... Ra8
{[%clk 0:01:55.2]} 25. Rfc1 {[%clk 0:02:01.9]} 25... Ra2+ {[%clk 0:01:53.9]} 26.
R1c2 {[%clk 0:02:02.3]} 26... Rxc2+ {[%clk 0:01:52.3]} 27. Rxc2 {[%clk
0:02:04.2]} 27... Nb4 {[%clk 0:01:50.4]} 28. Rc4 {[%clk 0:02:03.9]} 28... Kf8
{[%clk 0:01:48.8]} 29. Ke3 {[%clk 0:01:54]} 29... Ke7 {[%clk 0:01:48.4]} 30. Kd2
{[%clk 0:01:48.8]} 30... f6 {[%clk 0:01:37.4]} 31. Rxb4 {[%clk 0:01:48.2]} 31...
Rxb4 {[%clk 0:01:31.8]} 32. Nxc6+ {[%clk 0:01:48.6]} 32... Kd7 {[%clk
0:01:32.6]} 33. Nxb4 {[%clk 0:01:49.2]} 33... fxe5 {[%clk 0:01:33.3]} 34. Ke3
{[%clk 0:01:50.1]} 34... Kd6 {[%clk 0:01:33.6]} 35. Ke4 {[%clk 0:01:50.4]} 35...
g5 {[%clk 0:01:34.1]} 36. Nd3 {[%clk 0:01:50.8]} 1

[Event "Open Nuevo Centro. Jornada 2"]
[Site "Chess.com"]
[Date "2020.06.26"]
[Round "8"]
[White "Montesinos Diaz, Luis"]
[Black "Giaccio González, Alfredo Gustavo"]
[Result "1/2-1/2"]
[WhiteElo "1941"]
[BlackElo "2347"]
[TimeControl "180+2"]
[EndTime "11:56:45 PDT"]
[Termination "Partida en tablas por mutuo acuerdo"]

1. d4 {[%clk 0:03:01.9]} 1... e6 {[%clk 0:03:01.9]} 2. Nf3 {[%clk 0:03:01.8]}
2... b6 {[%clk 0:03:02.3]} 3. b3 {[%clk 0:02:58.3]} 3... Bb7 {[%clk 0:03:03.2]}
4. Bb2 {[%clk 0:02:59.6]} 4... f5 {[%clk 0:03:04.6]} 5. e3 {[%clk 0:03:00.6]}
5... Nf6 {[%clk 0:03:06]} 6. c4 {[%clk 0:03:01.9]} 6... g6 {[%clk 0:02:56.9]} 7.
Nbd2 {[%clk 0:02:51.3]} 7... Bg7 {[%clk 0:02:58.1]} 8. h4 {[%clk 0:02:51]} 8...
h6 {[%clk 0:02:53.4]} 9. Ne5 {[%clk 0:02:49.6]} 9... g5 {[%clk 0:02:47.9]} 10.
hxg5 {[%clk 0:02:50.1]} 10... hxg5 {[%clk 0:02:49.7]} 11. Rxh8+ {[%clk
0:02:51.2]} 11... Bxh8 {[%clk 0:02:51.1]} 12. Be2 {[%clk 0:02:45.8]} 12... g4
{[%clk 0:02:45.1]} 13. f3 {[%clk 0:02:39.7]} 13... d6 {[%clk 0:02:45.8]} 14. Ng6
{[%clk 0:02:35.4]} 14... Bg7 {[%clk 0:02:44.7]} 15. fxg4 {[%clk 0:02:35.4]}
15... Ne4 {[%clk 0:01:01.6]} 16. gxf5 {[%clk 0:02:30.1]} 16... Qg5 {[%clk
0:01:01.9]} 17. Nxe4 {[%clk 0:02:22.1]} 17... Bxe4 {[%clk 0:01:02.4]} 18. Bh5
{[%clk 0:02:18.4]} 18... Qxe3+ {[%clk 0:00:53.7]} 19. Qe2 {[%clk 0:02:15.2]}
19... Qxe2+ {[%clk 0:00:41.9]} 20. Kxe2 {[%clk 0:02:14.5]} 20... Bxf5 {[%clk
0:00:43.4]} 21. Nh4+ {[%clk 0:02:15]} 21... Kd7 {[%clk 0:00:39.4]} 22. Nxf5
{[%clk 0:02:15.5]} 22... exf5 {[%clk 0:00:39.9]} 23. Rf1 {[%clk 0:02:16.8]}
23... Nc6 {[%clk 0:00:40.4]} 24. Rxf5 {[%clk 0:02:14.6]} 24... Rf8 {[%clk
0:00:30.2]} 25. Rxf8 {[%clk 0:02:07.5]} 25... Bxf8 {[%clk 0:00:32.1]} 26. Bg4+
{[%clk 0:02:06.2]} 26... Kd8 {[%clk 0:00:32.7]} 27. d5 {[%clk 0:02:06.4]} 27...
Ne5 {[%clk 0:00:32.1]} 28. Bxe5 {[%clk 0:02:06.5]} 28... dxe5 {[%clk 0:00:33.3]}
29. Ke3 {[%clk 0:02:07.9]} 29... Ke7 {[%clk 0:00:33.2]} 30. Ke4 {[%clk
0:02:08.5]} 30... Kf6 {[%clk 0:00:34.3]} 31. Be6 {[%clk 0:02:07.6]} 31... Bh6
{[%clk 0:00:34.3]} 32. g4 {[%clk 0:02:07.8]} 32... Bf4 {[%clk 0:00:34.8]} 33. b4
{[%clk 0:02:03.4]} 33... Bd2 {[%clk 0:00:33.6]} 34. b5 {[%clk 0:02:03]} 1/2-1

[Event "Open Nuevo Centro. Jornada 2"]
[Site "Chess.com"]
[Date "2020.06.26"]
[Round "8"]
[White "Salvador Buiza, Victor"]
[Black "Deusa Ballesteros, Lucas "]
[Result "1-0"]
[WhiteElo "1764"]
[BlackElo "1474"]
[TimeControl "180+2"]
[EndTime "11:56:51 PDT"]
[Termination "Victoria de TERROROSCURO666 por abandono"]

1. e4 {[%clk 0:03:01.9]} 1... e6 {[%clk 0:03:00.5]} 2. d4 {[%clk 0:03:01.9]}
2... d5 {[%clk 0:03:00.1]} 3. e5 {[%clk 0:03:01.3]} 3... c5 {[%clk 0:03:00.5]}
4. c3 {[%clk 0:03:01.8]} 4... Nc6 {[%clk 0:03:01.4]} 5. Nf3 {[%clk 0:03:02.7]}
5... cxd4 {[%clk 0:03:01.1]} 6. cxd4 {[%clk 0:03:03]} 6... Nge7 {[%clk
0:03:01.9]} 7. Nc3 {[%clk 0:03:01.4]} 7... Nf5 {[%clk 0:03:03]} 8. Be3 {[%clk
0:02:57.8]} 8... Nxe3 {[%clk 0:03:03.1]} 9. fxe3 {[%clk 0:02:58.5]} 9... Be7
{[%clk 0:03:04.5]} 10. Bb5 {[%clk 0:02:58.2]} 10... O-O {[%clk 0:03:03.6]} 11.
O-O {[%clk 0:02:57.6]} 11... a6 {[%clk 0:03:01.8]} 12. Bxc6 {[%clk 0:02:58.3]}
12... bxc6 {[%clk 0:03:02.7]} 13. Rc1 {[%clk 0:02:57.5]} 13... Rb8 {[%clk
0:03:02.2]} 14. b3 {[%clk 0:02:57]} 14... Bd7 {[%clk 0:02:59.7]} 15. Na4 {[%clk
0:02:57.5]} 15... h6 {[%clk 0:02:44.9]} 16. Nc5 {[%clk 0:02:57.6]} 16... Bxc5
{[%clk 0:02:44.4]} 17. Rxc5 {[%clk 0:02:58.4]} 17... Rb5 {[%clk 0:02:44.7]} 18.
Rc3 {[%clk 0:02:50.4]} 18... a5 {[%clk 0:02:33.2]} 19. Qd3 {[%clk 0:02:49.4]}
19... Qb8 {[%clk 0:02:17.2]} 20. Rfc1 {[%clk 0:02:48.8]} 20... Qa8 {[%clk
0:02:07.3]} 21. Rc5 {[%clk 0:02:44.8]} 21... Rxc5 {[%clk 0:02:06.1]} 22. Rxc5
{[%clk 0:02:45]} 22... a4 {[%clk 0:02:05.7]} 23. Qc3 {[%clk 0:02:35.6]} 23...
axb3 {[%clk 0:02:04.7]} 24. axb3 {[%clk 0:02:36.2]} 24... Rb8 {[%clk 0:02:00.3]}
25. Ra5 {[%clk 0:02:30.2]} 25... Qb7 {[%clk 0:01:59.9]} 26. Nd2 {[%clk
0:02:23.6]} 26... Ra8 {[%clk 0:01:46.8]} 27. b4 {[%clk 0:02:14.9]} 27... Rxa5
{[%clk 0:01:36.8]} 28. bxa5 {[%clk 0:02:15]} 28... Qa7 {[%clk 0:01:35.5]} 29.
Nb3 {[%clk 0:02:14]} 29... Kf8 {[%clk 0:01:32]} 30. Qc5+ {[%clk 0:02:12.9]}
30... Qxc5 {[%clk 0:01:31]} 31. Nxc5 {[%clk 0:02:13.2]} 31... Bc8 {[%clk
0:01:25.7]} 32. a6 {[%clk 0:02:14]} 32... Bxa6 {[%clk 0:01:26.3]} 33. Nxa6
{[%clk 0:02:14.7]} 33... Ke7 {[%clk 0:01:27.7]} 34. Nb8 {[%clk 0:02:11.4]} 34...
f6 {[%clk 0:01:25.2]} 35. exf6+ {[%clk 0:02:02.7]} 35... gxf6 {[%clk 0:01:22.6]}
36. Nxc6+ {[%clk 0:02:02.6]} 36... Kd6 {[%clk 0:01:23.7]} 37. Nb4 {[%clk
0:02:02.5]} 37... e5 {[%clk 0:01:24.6]} 38. Kf2 {[%clk 0:02:02.3]} 38... exd4
{[%clk 0:01:17.2]} 39. exd4 {[%clk 0:02:02.7]} 39... Ke6 {[%clk 0:01:19.1]} 40.
Ke3 {[%clk 0:02:03.6]} 1

[Event "Open Nuevo Centro. Jornada 2"]
[Site "Chess.com"]
[Date "2020.06.26"]
[Round "8"]
[White "Rodriguez, Mathias"]
[Black "Bosch Jordà, Ricard"]
[Result "1-0"]
[WhiteElo "1968"]
[BlackElo "1752"]
[TimeControl "180+2"]
[EndTime "11:56:53 PDT"]
[Termination "Victoria de niguil por jaque mate"]

1. e4 {[%clk 0:03:00.6]} 1... c5 {[%clk 0:03:00.6]} 2. Nf3 {[%clk 0:03:00.3]}
2... Nc6 {[%clk 0:03:00.9]} 3. Bb5 {[%clk 0:03:01.4]} 3... g6 {[%clk 0:03:01.1]}
4. Bxc6 {[%clk 0:03:01.3]} 4... bxc6 {[%clk 0:03:02.2]} 5. O-O {[%clk
0:03:01.6]} 5... Bg7 {[%clk 0:03:02.5]} 6. d3 {[%clk 0:02:59.9]} 6... Nh6 {[%clk
0:03:00]} 7. h3 {[%clk 0:02:59.8]} 7... f6 {[%clk 0:02:58.7]} 8. Nc3 {[%clk
0:02:59.9]} 8... O-O {[%clk 0:02:59.1]} 9. Nh2 {[%clk 0:02:43.1]} 9... d6 {[%clk
0:02:54.3]} 10. f4 {[%clk 0:02:43.5]} 10... e5 {[%clk 0:02:36]} 11. f5 {[%clk
0:02:44.4]} 11... gxf5 {[%clk 0:02:31.1]} 12. Bxh6 {[%clk 0:02:45.6]} 12... Bxh6
{[%clk 0:02:30.6]} 13. Qh5 {[%clk 0:02:46.1]} 13... Be3+ {[%clk 0:02:17.7]} 14.
Kh1 {[%clk 0:02:46.2]} 14... fxe4 {[%clk 0:02:08]} 15. dxe4 {[%clk 0:02:48.1]}
15... f5 {[%clk 0:01:49.1]} 16. exf5 {[%clk 0:02:46.2]} 16... Qg5 {[%clk
0:01:43.7]} 17. Qxg5+ {[%clk 0:02:33.3]} 17... Bxg5 {[%clk 0:01:45.6]} 18. Ne4
{[%clk 0:02:35.1]} 18... Bf4 {[%clk 0:01:17.4]} 19. Nxd6 {[%clk 0:02:30.8]}
19... Bxf5 {[%clk 0:00:38]} 20. Nxf5 {[%clk 0:02:32.7]} 20... Rxf5 {[%clk
0:00:36.5]} 21. g3 {[%clk 0:02:34]} 21... Rd8 {[%clk 0:00:29.1]} 22. gxf4 {[%clk
0:02:34.8]} 22... exf4 {[%clk 0:00:29.9]} 23. Nf3 {[%clk 0:02:36]} 23... Rb8
{[%clk 0:00:29]} 24. b3 {[%clk 0:02:33.8]} 24... c4 {[%clk 0:00:29.8]} 25. Rad1
{[%clk 0:02:33.5]} 25... cxb3 {[%clk 0:00:30.5]} 26. axb3 {[%clk 0:02:35.4]}
26... Rb4 {[%clk 0:00:23.5]} 27. Rd7 {[%clk 0:02:35.1]} 27... Re4 {[%clk
0:00:23.3]} 28. Rxa7 {[%clk 0:02:27.9]} 28... Re2 {[%clk 0:00:23.6]} 29. Rd1
{[%clk 0:02:28.9]} 29... Rf8 {[%clk 0:00:18.6]} 30. c4 {[%clk 0:02:28.6]} 30...
Re3 {[%clk 0:00:18.6]} 31. Kg2 {[%clk 0:02:28.8]} 31... Rxb3 {[%clk 0:00:19.2]}
32. Rdd7 {[%clk 0:02:26.9]} 32... Rb2+ {[%clk 0:00:16.1]} 33. Nd2 {[%clk
0:02:27.7]} 33... h5 {[%clk 0:00:10.1]} 34. Rg7+ {[%clk 0:02:28]} 34... Kh8
{[%clk 0:00:10.7]} 35. Rh7+ {[%clk 0:02:29.9]} 35... Kg8 {[%clk 0:00:11.7]} 36.
Rag7# {[%clk 0:02:31.8]} 1